[Event "German Bundesliga 2021-22"]
[Site "Germany"]
[Date "2022.03.05"]
[Round "1.16"]
[White "Ciolek, Andreas"]
[Black "Acikel, Mert"]
[Result "1-0"]
[ECO "E09"]
[WhiteElo "2194"]
[BlackElo "2177"]
[Annotator "NA"]
[PlyCount "85"]
[EventDate "2022.03.05"]
[EventType "team-tourn"]
[EventCountry "GER"]
[SourceTitle "playchess.com"]
[Source "ChessBase"]
[SourceQuality "1"]
[TimeControl "40/5400+30:1800+30"]

1. d4 {[%emt 0:00:00]} d5 {[%emt 0:00:00]} 2. Nf3 {[%emt 0:00:00]} Nf6 {[%emt 0:00:00]} 3. g3 {[%emt 0:00:00]} e6 {[%emt 0:00:00]} 4. Bg2 {[%emt 0:00:00]} Be7 {[%emt 0:00:00]} 5. O-O {[%emt 0:00:00]} O-O {[%emt 0:00:00]} 6. c4 {[%emt 0:00:00]} c6 {[%emt 0:00:00]} 7. Qc2 {[%emt 0:00:00]} Nbd7 {[%emt 0:00:00]} 8. Nbd2 {[%emt 0:00:00]} b6 {[%emt 0:00:00]} 9. e4 {[%emt 0:00:00]} Bb7 {[%emt 0:00:00]} 10. e5 {[%emt 0:00:00]} Ne8 {[%emt 0:00:00]} 11. cxd5 {[%emt 0:00:00]} cxd5 {[%emt 0:00:00]} 12. Re1 {[%emt 0:00:00]} Rc8 {[%emt 0:00:00]} 13. Qd1 {[%emt 0:00:00]} Qc7 {[%emt 0:00:26]} 14. Nb1 {[%emt 0:00:06]} b5 {[%emt 0:19:14]} 15. a3 {[%emt 0:00:41]} a5 {[%emt 0:03:30]} 16. Bf1 {[%emt 0:03:06]} b4 {[%emt 0:14:30]} 17. Bd3 {[%emt 0:06:28]} h6 {[%emt 0:07:21]} 18. Bf4 {[%emt 0:14:51]} Nb6 {[%emt 0:06:09]} 19. axb4 {[%emt 0:15:34]} axb4 {[%emt 0:00:47]} 20. b3 {[%emt 0:01:30]} Qd8 {[%emt 0:23:13]} 21. h4 {[%emt 0:02:31]} Ra8 {[%emt 0:01:13]} 22. Nbd2 {[%emt 0:04:12]} Nc7 {[%emt 0:02:40]} 23. Qe2 {[%emt 0:02:06]} Ra3 {[%emt 0:02:50]} 24. Rac1 {[%emt 0:06:02]} Ba6 {[%emt 0:04:14]} 25. Bxa6 {[%emt 0:05:33]} Nxa6 {[%emt 0:00:09]} 26. Qb5 {[%emt 0:01:26]} Na8 {[%emt 0:03:13]} 27. Rc2 {[%emt 0:04:13]} N8c7 {[%emt 0:02:34]} 28. Qd3 {[%emt 0:00:57]} Qd7 {[%emt 0:00:51]} 29. g4 {[%emt 0:05:37]} Nb5 {[%emt 0:02:48]} 30. h5 {[%emt 0:03:33]} f5 {[%emt 0:03:31]} 31. exf6 {[%emt 0:01:52]} Bxf6 {[%emt 0:00:33]} 32. Be5 {[%emt 0:04:20]} Nc3 {[%emt 0:02:21]} 33. Nb1 {[%emt 0:02:06]} Nxb1 {[%emt 0:03:46]} 34. Rxb1 {[%emt 0:00:05]} Qf7 {[%emt 0:00:15]} 35. Kg2 {[%emt 0:03:44]} Nb8 {[%emt 0:01:13]} 36. Rbc1 {[%emt 0:02:04]} Nd7 {[%emt 0:00:19]} 37. Bxf6 {[%emt 0:09:34]} Qxf6 {[%emt 0:00:33]} 38. Rc7 {[%emt 0:01:44]} Qf4 {[%emt 0:00:45]} 39. Rxd7 {[%emt 0:03:47]} Qxg4+ {[%emt 0:00:12]} 40. Kf1 {[%emt 0:00:57]} Qxf3 {[%emt 0:00:47]} 41. Rxg7+ {[%emt 0:00:00]} Kxg7 {[%emt 0:00:00]} 42. Rc7+ {[%emt 0:00:00]} Rf7 {[%emt 0:00:00]} 43. Qxf3 {[%emt 0:00:00]} 1-0

[Event "German Bundesliga 2021-22"]
[Site "Germany"]
[Date "2022.03.06"]
[Round "2.2"]
[White "Rabiega, Robert"]
[Black "Bogner, Sebastian"]
[Result "1/2-1/2"]
[ECO "B06"]
[WhiteElo "2505"]
[BlackElo "2573"]
[Annotator "ChessBase"]
[PlyCount "64"]
[EventDate "2022.03.05"]
[EventType "team-tourn"]
[EventCountry "GER"]
[SourceTitle "playchess.com"]
[Source "ChessBase"]
[SourceQuality "1"]
[TimeControl "40/5400+30:1800+30"]

1. e4 {[%emt 0:00:00]} c5 {[%emt 0:00:00]} 2. c3 {[%emt 0:00:00]} d5 {[%emt 0:00:00]} 3. exd5 {[%emt 0:00:00]} Qxd5 {[%emt 0:00:00]} 4. d4 {[%emt 0:00:00]} g6 {[%emt 0:00:00]} 5. Nf3 {[%emt 0:00:00]} Bg7 {[%emt 0:00:00]} 6. Na3 {[%emt 0:00:00]} cxd4 {[%emt 0:00:00]} 7. Nb5 {[%emt 0:06:30]} Na6 {[%emt 0:00:00]} 8. Nbxd4 {[%emt 0:00:08]} Nf6 {[%emt 0:00:00]} 9. Bb5+ {[%emt 0:00:26]} Bd7 {[%emt 0:00:00]} 10. Bxa6 {[%emt 0:00:19]} bxa6 {[%emt 0:00:00]} 11. O-O {[%emt 0:00:08]} O-O {[%emt 0:00:00]} 12. Re1 {[%emt 0:00:14]} Rfe8 {[%emt 0:00:00]} 13. Ne5 {[%emt 0:03:39]} Rad8 {[%emt 0:26:48]} 14. Nxd7 {[%emt 0:09:39]} Nxd7 {[%emt 0:06:49]} 15. Qe2 {[%emt 0:18:46]} Nc5 {[%emt 0:05:38]} 16. Be3 {[%emt 0:01:51]} e5 {[%emt 0:06:53]} 17. Nc2 {[%emt 0:02:42]} Nd3 {[%emt 0:04:34]} 18. Nb4 {[%emt 0:00:13]} Nxb4 {[%emt 0:05:45]} 19. cxb4 {[%emt 0:00:11]} Qb5 {[%emt 0:03:41]} 20. Bxa7 {[%emt 0:17:31]} Qxb4 {[%emt 0:01:35]} 21. Rad1 {[%emt 0:02:13]} a5 {[%emt 0:04:40]} 22. b3 {[%emt 0:00:50]} a4 {[%emt 0:03:46]} 23. bxa4 {[%emt 0:11:54]} Ra8 {[%emt 0:04:17]} 24. Be3 {[%emt 0:00:10]} Qxa4 {[%emt 0:09:02]} 25. Rd2 {[%emt 0:00:28]} Red8 {[%emt 0:03:19]} 26. Red1 {[%emt 0:03:48]} Rxd2 {[%emt 0:00:05]} 27. Rxd2 {[%emt 0:00:06]} e4 {[%emt 0:00:44]} 28. g3 {[%emt 0:01:24]} Bf6 {[%emt 0:00:41]} 29. Rd6 {[%emt 0:06:12]} Be5 {[%emt 0:01:30]} 30. Rd5 {[%emt 0:00:41]} Bf6 {[%emt 0:00:48]} 31. Rd6 {[%emt 0:01:03]} Be5 {[%emt 0:00:08]} 32. Rd5 {[%emt 0:00:12]} Bf6 {[%emt 0:00:06]} 1/2-1/2

[Event "German Bundesliga 2021-22"]
[Site "Germany"]
[Date "2022.03.06"]
[Round "2.3"]
[White "Alonso Rosell, Alvar"]
[Black "Richter, Michael"]
[Result "1/2-1/2"]
[ECO "D22"]
[WhiteElo "2570"]
[BlackElo "2496"]
[Annotator "ChessBase"]
[PlyCount "103"]
[EventDate "2022.03.05"]
[EventType "team-tourn"]
[EventCountry "GER"]
[SourceTitle "playchess.com"]
[Source "ChessBase"]
[SourceQuality "1"]
[TimeControl "40/5400+30:1800+30"]

1. d4 {[%emt 0:00:00]} d5 {[%emt 0:00:00]} 2. c4 {[%emt 0:00:00]} dxc4 {[%emt 0:00:00]} 3. Nf3 {[%emt 0:00:00]} a6 {[%emt 0:00:00]} 4. e3 {[%emt 0:00:00]} b5 {[%emt 0:00:00]} 5. a4 {[%emt 0:00:00]} Bb7 {[%emt 0:00:00]} 6. b3 {[%emt 0:00:00]} e6 {[%emt 0:00:00]} 7. bxc4 {[%emt 0:00:00]} bxc4 {[%emt 0:00:00]} 8. Bxc4 {[%emt 0:01:43]} Nf6 {[%emt 0:00:00]} 9. Nbd2 {[%emt 0:18:33]} c5 {[%emt 0:00:00]} 10. O-O {[%emt 0:09:29]} Nbd7 {[%emt 0:00:00]} 11. Ba3 {[%emt 0:12:15]} Be7 {[%emt 0:00:00]} 12. Be2 {[%emt 0:13:49]} cxd4 {[%emt 0:01:37]} 13. Bxe7 {[%emt 0:01:09]} Qxe7 {[%emt 0:00:09]} 14. Nxd4 {[%emt 0:00:22]} O-O {[%emt 0:00:29]} 15. Bf3 {[%emt 0:07:28]} Nd5 {[%emt 0:09:28]} 16. Qb3 {[%emt 0:05:13]} Rab8 {[%emt 0:04:39]} 17. Rab1 {[%emt 0:10:52]} Ba8 {[%emt 0:05:52]} 18. Qc4 {[%emt 0:02:32]} a5 {[%emt 0:26:50]} 19. Qa6 {[%emt 0:04:04]} Rxb1 {[%emt 0:16:48]} 20. Rxb1 {[%emt 0:00:06]} Nc3 {[%emt 0:00:25]} 21. Ra1 {[%emt 0:01:55]} Bxf3 {[%emt 0:07:11]} 22. N2xf3 {[%emt 0:00:09]} Qb4 {[%emt 0:01:34]} 23. Nc6 {[%emt 0:06:28]} Qb2 {[%emt 0:00:44]} 24. Rf1 {[%emt 0:02:16]} Nxa4 {[%emt 0:17:05]} 25. Qxa5 {[%emt 0:00:18]} Nac5 {[%emt 0:02:03]} 26. Qc7 {[%emt 0:00:28]} h6 {[%emt 0:02:22]} 27. h3 {[%emt 0:01:48]} Qb6 {[%emt 0:04:00]} 28. Qxb6 {[%emt 0:02:32]} Nxb6 {[%emt 0:00:06]} 29. Rc1 {[%emt 0:00:06]} Ncd7 {[%emt 0:01:35]} 30. Nfd4 {[%emt 0:00:14]} Kh7 {[%emt 0:00:35]} 31. Nb5 {[%emt 0:00:18]} Ra8 {[%emt 0:01:30]} 32. Nd6 {[%emt 0:01:01]} f6 {[%emt 0:00:29]} 33. Nd4 {[%emt 0:00:54]} e5 {[%emt 0:00:14]} 34. N4b5 {[%emt 0:00:38]} h5 {[%emt 0:01:01]} 35. g4 {[%emt 0:00:22]} hxg4 {[%emt 0:00:10]} 36. hxg4 {[%emt 0:00:01]} Ra4 {[%emt 0:00:38]} 37. e4 {[%emt 0:01:20]} Rb4 {[%emt 0:00:47]} 38. Nc7 {[%emt 0:00:33]} Nf8 {[%emt 0:00:29]} 39. f3 {[%emt 0:00:23]} Rb2 {[%emt 0:00:29]} 40. Nf5 {[%emt 0:00:35]} g6 {[%emt 0:00:37]} 41. Ne3 {[%emt 0:00:00]} Kh6 {[%emt 0:00:00]} 42. Rc2 {[%emt 0:00:00]} Rxc2 {[%emt 0:00:00]} 43. Nxc2 {[%emt 0:00:00]} Nc4 {[%emt 0:00:00]} 44. Kf2 {[%emt 0:00:00]} f5 {[%emt 0:00:00]} 45. gxf5 {[%emt 0:00:00]} gxf5 {[%emt 0:00:00]} 46. exf5 {[%emt 0:00:00]} Kg5 {[%emt 0:00:00]} 47. Ne6+ {[%emt 0:00:00]} Nxe6 {[%emt 0:00:00]} 48. fxe6 {[%emt 0:00:00]} Kf6 {[%emt 0:00:00]} 49. Ne3 {[%emt 0:00:00]} Nxe3 {[%emt 0:00:00]} 50. Kxe3 {[%emt 0:00:00]} Kxe6 {[%emt 0:00:00]} 51. f4 {[%emt 0:00:00]} exf4+ {[%emt 0:00:00]} 52. Kxf4 {[%emt 0:00:00]} 1/2-1/2

[Event "German Bundesliga 2021-22"]
[Site "Germany"]
[Date "2022.03.06"]
[Round "2.4"]
[White "Bruedigam, Martin"]
[Black "Georgiadis, Nico"]
[Result "0-1"]
[ECO "B51"]
[WhiteElo "2386"]
[BlackElo "2562"]
[Annotator "ChessBase"]
[PlyCount "134"]
[EventDate "2022.03.05"]
[EventType "team-tourn"]
[EventCountry "GER"]
[SourceTitle "playchess.com"]
[Source "ChessBase"]
[SourceQuality "1"]
[TimeControl "40/5400+30:1800+30"]

1. e4 {[%emt 0:00:00]} c5 {[%emt 0:00:00]} 2. Nf3 {[%emt 0:00:00]} d6 {[%emt 0:00:00]} 3. Bb5+ {[%emt 0:00:00]} Nd7 {[%emt 0:00:00]} 4. d4 {[%emt 0:00:00]} cxd4 {[%emt 0:00:00]} 5. Qxd4 {[%emt 0:00:00]} a6 {[%emt 0:00:00]} 6. Bxd7+ {[%emt 0:00:00]} Bxd7 {[%emt 0:00:00]} 7. O-O {[%emt 0:00:00]} Rc8 {[%emt 0:00:00]} 8. c4 {[%emt 0:00:00]} Bg4 {[%emt 0:00:00]} 9. Qd3 {[%emt 0:11:12]} Bxf3 {[%emt 0:08:04]} 10. Qxf3 {[%emt 0:00:05]} Rxc4 {[%emt 0:01:38]} 11. Qb3 {[%emt 0:25:45]} Qc7 {[%emt 0:07:03]} 12. Be3 {[%emt 0:07:10]} e6 {[%emt 0:23:05]} 13. Na3 {[%emt 0:03:10]} Rc6 {[%emt 0:04:00]} 14. Rac1 {[%emt 0:01:21]} Ne7 {[%emt 0:03:13]} 15. Nc4 {[%emt 0:09:16]} d5 {[%emt 0:11:24]} 16. Nb6 {[%emt 0:07:21]} d4 {[%emt 0:03:07]} 17. Rxc6 {[%emt 0:13:30]} Nxc6 {[%emt 0:00:07]} 18. Bd2 {[%emt 0:00:07]} Bd6 {[%emt 0:05:55]} 19. h3 {[%emt 0:00:25]} O-O {[%emt 0:00:28]} 20. Nc4 {[%emt 0:00:40]} Bh2+ {[%emt 0:10:18]} 21. Kh1 {[%emt 0:00:04]} b5 {[%emt 0:00:07]} 22. Rc1 {[%emt 0:09:41]} Bf4 {[%emt 0:00:46]} 23. Qf3 {[%emt 0:02:26]} Bxd2 {[%emt 0:03:42]} 24. Nxd2 {[%emt 0:00:05]} Qd6 {[%emt 0:00:05]} 25. Qd3 {[%emt 0:01:46]} Rd8 {[%emt 0:01:17]} 26. Kg1 {[%emt 0:01:31]} h6 {[%emt 0:01:27]} 27. a3 {[%emt 0:01:29]} Ne5 {[%emt 0:00:15]} 28. Qc2 {[%emt 0:00:56]} d3 {[%emt 0:00:29]} 29. Qc3 {[%emt 0:00:54]} h5 {[%emt 0:05:56]} 30. h4 {[%emt 0:01:46]} Kh7 {[%emt 0:07:23]} 31. g3 {[%emt 0:00:20]} Rd7 {[%emt 0:01:00]} 32. Kf1 {[%emt 0:01:35]} f6 {[%emt 0:00:59]} 33. Qc5 {[%emt 0:01:42]} Kg6 {[%emt 0:01:56]} 34. Qxd6 {[%emt 0:01:36]} Rxd6 {[%emt 0:00:03]} 35. Ke1 {[%emt 0:00:05]} Rd4 {[%emt 0:01:34]} 36. b3 {[%emt 0:00:50]} Rd6 {[%emt 0:01:59]} 37. f4 {[%emt 0:01:23]} Nc6 {[%emt 0:00:38]} 38. Rc3 {[%emt 0:00:35]} e5 {[%emt 0:00:29]} 39. f5+ {[%emt 0:00:18]} Kf7 {[%emt 0:00:23]} 40. Kf2 {[%emt 0:00:12]} b4 {[%emt 0:00:57]} 41. axb4 {[%emt 0:00:00]} Nxb4 {[%emt 0:00:00]} 42. Rc7+ {[%emt 0:00:00]} Kg8 {[%emt 0:00:00]} 43. Rc4 {[%emt 0:03:00]} Nc2 {[%emt 0:00:00]} 44. Rc8+ {[%emt 0:06:50]} Kh7 {[%emt 0:00:00]} 45. Rc7 {[%emt 0:04:59]} Kh6 {[%emt 0:00:00]} 46. Rc5 {[%emt 0:05:32]} g6 {[%emt 0:00:00]} 47. Rd5 {[%emt 0:02:10]} Rxd5 {[%emt 0:00:00]} 48. exd5 {[%emt 0:00:06]} gxf5 {[%emt 0:00:00]} 49. d6 {[%emt 0:00:04]} Nb4 {[%emt 0:00:00]} 50. d7 {[%emt 0:00:06]} Nc6 {[%emt 0:00:00]} 51. Nc4 {[%emt 0:00:05]} Kg6 {[%emt 0:16:40]} 52. Nd6 {[%emt 0:00:04]} Nd8 {[%emt 0:00:04]} 53. Ke3 {[%emt 0:07:54]} e4 {[%emt 0:00:05]} 54. Kd2 {[%emt 0:00:19]} f4 {[%emt 0:01:49]} 55. Nxe4 {[%emt 0:05:33]} f5 {[%emt 0:03:50]} 56. Nc3 {[%emt 0:00:38]} fxg3 {[%emt 0:00:15]} 57. Kxd3 {[%emt 0:00:08]} g2 {[%emt 0:01:46]} 58. Ne2 {[%emt 0:00:15]} Kf6 {[%emt 0:00:05]} 59. Ke3 {[%emt 0:00:13]} Ke7 {[%emt 0:01:04]} 60. Kf2 {[%emt 0:00:53]} Ne6 {[%emt 0:00:53]} 61. Kxg2 {[%emt 0:01:15]} Kxd7 {[%emt 0:00:10]} 62. Kf3 {[%emt 0:01:34]} Kd6 {[%emt 0:00:52]} 63. Nf4 {[%emt 0:00:24]} Nxf4 {[%emt 0:02:02]} 64. Kxf4 {[%emt 0:00:04]} Ke6 {[%emt 0:00:04]} 65. Kg5 {[%emt 0:00:05]} Ke5 {[%emt 0:00:03]} 66. Kxh5 {[%emt 0:00:05]} f4 {[%emt 0:00:04]} 67. Kg4 {[%emt 0:00:52]} Ke4 {[%emt 0:00:04]} 0-1

[Event "German Bundesliga 2021-22"]
[Site "Germany"]
[Date "2022.03.06"]
[Round "2.5"]
[White "Dragnev, Valentin"]
[Black "Fruebing, Stefan"]
[Result "1-0"]
[ECO "C65"]
[WhiteElo "2533"]
[BlackElo "2374"]
[Annotator "ChessBase"]
[PlyCount "95"]
[EventDate "2022.03.05"]
[EventType "team-tourn"]
[EventCountry "GER"]
[SourceTitle "playchess.com"]
[Source "ChessBase"]
[SourceQuality "1"]
[TimeControl "40/5400+30:1800+30"]

1. e4 {[%emt 0:00:00]} e5 {[%emt 0:00:00]} 2. Nf3 {[%emt 0:00:00]} Nc6 {[%emt 0:00:00]} 3. Bb5 {[%emt 0:00:00]} Nf6 {[%emt 0:00:00]} 4. d3 {[%emt 0:00:00]} Bc5 {[%emt 0:00:00]} 5. Bxc6 {[%emt 0:00:00]} dxc6 {[%emt 0:00:00]} 6. O-O {[%emt 0:00:00]} Qe7 {[%emt 0:00:00]} 7. Nbd2 {[%emt 0:00:00]} Bg4 {[%emt 0:00:00]} 8. h3 {[%emt 0:00:00]} Bh5 {[%emt 0:00:00]} 9. a3 {[%emt 0:00:00]} a5 {[%emt 0:00:00]} 10. Nc4 {[%emt 0:00:00]} Nd7 {[%emt 0:00:00]} 11. g4 {[%emt 0:00:00]} Bg6 {[%emt 0:00:00]} 12. b4 {[%emt 0:00:00]} Bb6 {[%emt 0:17:14]} 13. Rb1 {[%emt 0:00:00]} axb4 {[%emt 0:01:26]} 14. axb4 {[%emt 0:00:00]} O-O {[%emt 0:09:24]} 15. Bg5 {[%emt 0:12:29]} f6 {[%emt 0:02:50]} 16. Be3 {[%emt 0:00:41]} Bf7 {[%emt 0:03:35]} 17. Nxb6 {[%emt 0:10:30]} cxb6 {[%emt 0:00:08]} 18. Kh2 {[%emt 0:00:23]} Ra4 {[%emt 0:17:59]} 19. Qd2 {[%emt 0:01:38]} Be6 {[%emt 0:04:35]} 20. Rg1 {[%emt 0:01:20]} b5 {[%emt 0:06:36]} 21. Nh4 {[%emt 0:04:38]} Rf7 {[%emt 0:14:28]} 22. Nf5 {[%emt 0:05:05]} Qf8 {[%emt 0:00:50]} 23. Rg3 {[%emt 0:00:38]} g5 {[%emt 0:01:41]} 24. h4 {[%emt 0:09:00]} Bxf5 {[%emt 0:00:52]} 25. gxf5 {[%emt 0:00:20]} h6 {[%emt 0:00:09]} 26. Rbg1 {[%emt 0:19:00]} Rh7 {[%emt 0:03:37]} 27. c3 {[%emt 0:01:43]} Qf7 {[%emt 0:02:17]} 28. d4 {[%emt 0:11:02]} Ra8 {[%emt 0:00:05]} 29. Kg2 {[%emt 0:02:16]} Kf8 {[%emt 0:03:50]} 30. dxe5 {[%emt 0:03:00]} Nxe5 {[%emt 0:00:11]} 31. Qd6+ {[%emt 0:00:49]} Qe7 {[%emt 0:05:59]} 32. Bc5 {[%emt 0:01:06]} Qxd6 {[%emt 0:00:43]} 33. Bxd6+ {[%emt 0:00:07]} Kf7 {[%emt 0:01:22]} 34. hxg5 {[%emt 0:01:13]} hxg5 {[%emt 0:00:25]} 35. Bxe5 {[%emt 0:00:10]} fxe5 {[%emt 0:00:08]} 36. Rd1 {[%emt 0:00:38]} Rh4 {[%emt 0:02:11]} 37. Rd7+ {[%emt 0:00:31]} Kf6 {[%emt 0:00:41]} 38. Rgd3 {[%emt 0:00:20]} g4 {[%emt 0:01:44]} 39. Kg3 {[%emt 0:11:29]} Rah8 {[%emt 0:01:40]} 40. R3d6+ {[%emt 0:01:50]} Kg5 {[%emt 0:00:02]} 41. Rg6+ {[%emt 0:32:57]} Kh5 {[%emt 0:30:19]} 42. Rdg7 {[%emt 0:00:27]} Rh3+ {[%emt 0:01:13]} 43. Kg2 {[%emt 0:00:39]} Rxc3 {[%emt 0:00:34]} 44. Rg5+ {[%emt 0:00:06]} Kh4 {[%emt 0:00:06]} 45. Rxg4+ {[%emt 0:00:06]} Kh5 {[%emt 0:00:03]} 46. f3 {[%emt 0:01:19]} Rc1 {[%emt 0:01:32]} 47. Rg3 {[%emt 0:01:35]} Rc2+ {[%emt 0:00:24]} 48. Kh3 {[%emt 0:00:10]} 1-0

[Event "German Bundesliga 2021-22"]
[Site "Germany"]
[Date "2022.03.06"]
[Round "2.5"]
[White "Maze, Sebastien"]
[Black "Neef, Maximilian"]
[Result "1/2-1/2"]
[ECO "E71"]
[WhiteElo "2527"]
[BlackElo "2504"]
[Annotator "ChessBase"]
[PlyCount "98"]
[EventDate "2022.03.05"]
[EventType "team-tourn"]
[EventCountry "GER"]
[SourceTitle "playchess.com"]
[Source "ChessBase"]
[SourceQuality "1"]
[TimeControl "40/5400+30:1800+30"]

1. d4 {[%emt 0:00:00]} Nf6 {[%emt 0:00:00]} 2. c4 {[%emt 0:00:00]} g6 {[%emt 0:00:00]} 3. Nc3 {[%emt 0:00:00]} Bg7 {[%emt 0:00:00]} 4. e4 {[%emt 0:00:00]} d6 {[%emt 0:00:00]} 5. h3 {[%emt 0:00:00]} O-O {[%emt 0:00:00]} 6. Be3 {[%emt 0:00:00]} Na6 {[%emt 0:00:00]} 7. g4 {[%emt 0:00:00]} c5 {[%emt 0:00:00]} 8. Nge2 {[%emt 0:00:00]} cxd4 {[%emt 0:00:00]} 9. Nxd4 {[%emt 0:00:00]} b6 {[%emt 0:00:00]} 10. Bg2 {[%emt 0:00:00]} Bb7 {[%emt 0:00:00]} 11. O-O {[%emt 0:00:00]} Nc5 {[%emt 0:00:00]} 12. Qc2 {[%emt 0:00:00]} Rc8 {[%emt 0:00:00]} 13. Rad1 {[%emt 0:00:00]} Nfd7 {[%emt 0:00:00]} 14. b3 {[%emt 0:00:00]} a6 {[%emt 0:04:05]} 15. a4 {[%emt 0:10:32]} Ba8 {[%emt 0:12:22]} 16. Rd2 {[%emt 0:08:14]} Re8 {[%emt 0:06:59]} 17. Rfd1 {[%emt 0:07:33]} Qc7 {[%emt 0:06:39]} 18. f4 {[%emt 0:07:31]} Qb8 {[%emt 0:09:39]} 19. Nde2 {[%emt 0:28:56]} Nf6 {[%emt 0:16:12]} 20. Ng3 {[%emt 0:04:24]} h6 {[%emt 0:05:02]} 21. Bf3 {[%emt 0:04:25]} Bc6 {[%emt 0:06:41]} 22. Rf1 {[%emt 0:07:17]} Qa8 {[%emt 0:07:37]} 23. Rdf2 {[%emt 0:03:16]} Ncd7 {[%emt 0:04:23]} 24. Qd3 {[%emt 0:07:15]} Nc5 {[%emt 0:02:31]} 25. Qc2 {[%emt 0:03:42]} Ncd7 {[%emt 0:00:08]} 26. b4 {[%emt 0:04:47]} b5 {[%emt 0:04:32]} 27. h4 {[%emt 0:00:55]} Bb7 {[%emt 0:03:14]} 28. Be2 {[%emt 0:00:04]} Rxc4 {[%emt 0:03:06]} 29. Bxc4 {[%emt 0:00:03]} bxc4 {[%emt 0:00:10]} 30. Qe2 {[%emt 0:04:54]} Nxe4 {[%emt 0:02:26]} 31. Ncxe4 {[%emt 0:00:18]} Bxe4 {[%emt 0:00:07]} 32. Qxc4 {[%emt 0:00:13]} Bd5 {[%emt 0:02:45]} 33. Qe2 {[%emt 0:00:57]} Rc8 {[%emt 0:01:02]} 34. Rc1 {[%emt 0:01:11]} Rxc1+ {[%emt 0:02:42]} 35. Bxc1 {[%emt 0:00:01]} Qc6 {[%emt 0:00:08]} 36. Bb2 {[%emt 0:00:03]} Bxb2 {[%emt 0:00:38]} 37. Qxb2 {[%emt 0:00:02]} Qxa4 {[%emt 0:00:12]} 38. Rc2 {[%emt 0:02:02]} e5 {[%emt 0:04:20]} 39. g5 {[%emt 0:00:13]} hxg5 {[%emt 0:01:12]} 40. fxg5 {[%emt 0:00:03]} a5 {[%emt 0:00:51]} 41. Rd2 {[%emt 0:00:00]} Nb6 {[%emt 0:00:00]} 42. bxa5 {[%emt 0:00:00]} Qxa5 {[%emt 0:00:00]} 43. h5 {[%emt 0:00:00]} Qa7 {[%emt 0:00:00]} 44. Rf2 {[%emt 0:00:00]} Nc4 {[%emt 0:00:00]} 45. Qc3 {[%emt 0:00:00]} Qe7 {[%emt 0:05:34]} 46. hxg6 {[%emt 0:00:00]} Qxg5 {[%emt 0:04:11]} 47. gxf7+ {[%emt 0:00:00]} Bxf7 {[%emt 0:01:28]} 48. Rxf7 {[%emt 0:00:00]} Kxf7 {[%emt 0:00:11]} 49. Qxc4+ {[%emt 0:00:00]} Kf6 {[%emt 0:00:17]} 1/2-1/2

[Event "German Bundesliga 2021-22"]
[Site "Germany"]
[Date "2022.03.06"]
[Round "2.6"]
[White "Maiwald, Jens-Uwe"]
[Black "Libiszewski, Fabien"]
[Result "0-1"]
[ECO "A48"]
[WhiteElo "2430"]
[BlackElo "2505"]
[Annotator "ChessBase"]
[PlyCount "74"]
[EventDate "2022.03.05"]
[EventType "team-tourn"]
[EventCountry "GER"]
[SourceTitle "playchess.com"]
[Source "ChessBase"]
[SourceQuality "1"]
[TimeControl "40/5400+30:1800+30"]

1. d4 {[%emt 0:00:00]} Nf6 {[%emt 0:00:00]} 2. Nf3 {[%emt 0:00:00]} g6 {[%emt 0:00:00]} 3. Bg5 {[%emt 0:00:00]} Bg7 {[%emt 0:00:00]} 4. Nbd2 {[%emt 0:00:00]} O-O {[%emt 0:00:00]} 5. c3 {[%emt 0:00:00]} d6 {[%emt 0:00:00]} 6. e4 {[%emt 0:00:00]} c5 {[%emt 0:00:00]} 7. dxc5 {[%emt 0:00:00]} dxc5 {[%emt 0:00:00]} 8. Bc4 {[%emt 0:00:00]} Nc6 {[%emt 0:00:00]} 9. Qe2 {[%emt 0:00:00]} Na5 {[%emt 0:15:15]} 10. e5 {[%emt 0:03:39]} Nd5 {[%emt 0:06:06]} 11. Rd1 {[%emt 0:02:34]} Be6 {[%emt 0:04:52]} 12. Bxd5 {[%emt 0:02:54]} Bxd5 {[%emt 0:05:01]} 13. Ne4 {[%emt 0:01:00]} f6 {[%emt 0:04:28]} 14. Bc1 {[%emt 0:29:16]} b6 {[%emt 0:04:59]} 15. b3 {[%emt 0:03:59]} f5 {[%emt 0:04:36]} 16. Neg5 {[%emt 0:02:14]} Qd7 {[%emt 0:02:47]} 17. Nxh7 {[%emt 0:27:07]} Kxh7 {[%emt 0:13:00]} 18. Ng5+ {[%emt 0:00:06]} Kg8 {[%emt 0:00:05]} 19. c4 {[%emt 0:01:55]} Bxc4 {[%emt 0:01:12]} 20. bxc4 {[%emt 0:05:07]} Qa4 {[%emt 0:12:33]} 21. O-O {[%emt 0:05:06]} Qxc4 {[%emt 0:01:45]} 22. Qf3 {[%emt 0:00:15]} Bh6 {[%emt 0:00:22]} 23. Rd7 {[%emt 0:07:25]} Rad8 {[%emt 0:06:52]} 24. e6 {[%emt 0:03:15]} Rxd7 {[%emt 0:02:42]} 25. exd7 {[%emt 0:00:03]} Rd8 {[%emt 0:00:07]} 26. Qg3 {[%emt 0:02:38]} Bxg5 {[%emt 0:13:36]} 27. Qc7 {[%emt 0:01:09]} Rxd7 {[%emt 0:02:32]} 28. Qxd7 {[%emt 0:00:06]} Bxc1 {[%emt 0:00:21]} 29. Qe8+ {[%emt 0:00:21]} Kg7 {[%emt 0:00:02]} 30. Qxe7+ {[%emt 0:00:07]} Kh6 {[%emt 0:00:14]} 31. Qf8+ {[%emt 0:01:50]} Kh5 {[%emt 0:00:13]} 32. Qh8+ {[%emt 0:00:43]} Bh6 {[%emt 0:00:14]} 33. h3 {[%emt 0:01:52]} Qd4 {[%emt 0:01:37]} 34. Qe8 {[%emt 0:00:08]} Bg7 {[%emt 0:00:58]} 35. Re1 {[%emt 0:00:42]} Nc4 {[%emt 0:00:54]} 36. Qe2+ {[%emt 0:01:47]} Kh6 {[%emt 0:00:08]} 37. Rc1 {[%emt 0:01:08]} Ne5 {[%emt 0:00:25]} 0-1